bitfinex/quotes_SOLUSD_20251120
["timestamp","ask_amount","ask_price","bid_price","bid_amount"]
[1763653138215,1.74,140.35,140.31,7.05891201]
[1763653138419,0.71,140.34,140.3,7.72891201]
[1763653139545,1.74,140.35,140.31,9.78882769]
[1763653139746,2.45,140.35,140.31,9.78882769]
[1763653140039,7.12555223,140.34,140.31,9.78882769]
[1763653140241,32.70834481,140.34,140.27,0.67]
[1763653140444,7.76891201,140.33,140.28,9.78882769]
[1763653140741,7.76891201,140.33,140.27,16.8477397]
[1763653140943,1.74,140.32,140.28,7.05891201]
[1763653141243,2.45,140.32,140.27,10.45882769]
[1763653141417,0.71,140.31,140.27,7.72891201]
[1763653141621,7.76891201,140.31,140.25,0.67]
[1763653141948,32.00545512,140.3,140.25,7.05891201]
[1763653142114,1.74,140.29,140.24,17.0477397]
[1763653142319,0.71,140.28,140.24,17.0477397]
[1763653142519,0.71,140.28,140.24,17.7177397]
[1763653142743,0.71,140.28,140.24,7.92891201]
[1763653142939,0.71,140.28,140.24,7.25891201]
[1763653143538,0.71,140.28,140.24,0.2]
[1763653143919,7.12910814,140.27,140.24,7.25891201]
[1763653144114,1.74,140.26,140.24,0.2]
[1763653144320,9.50891201,140.26,140.24,0.2]
[1763653144558,25.88987201,140.25,140.15,0.87]
[1763653144889,7.05891201,140.2,140.15,7.92891201]
[1763653145150,7.05891201,140.24,140.17,16.8477397]
[1763653145151,1.74,140.19,140.17,16.8477397]
[1763653145357,7.05891201,140.23,140.17,16.8477397]
[1763653145358,1.74,140.2,140.17,16.8477397]
[1763653145858,1.74,140.2,140.17,17.5177397]
[1763653146268,2.45,140.2,140.17,9.78882769]
[1763653146471,1.74,140.2,140.17,9.78882769]
[1763653146963,0.71,140.19,140.15,7.25891201]
[1763653147145,7.76891201,140.19,140.15,0.2]
[1763653147953,1.74,140.2,140.15,7.92891201]
[1763653147954,8.87269609,140.2,140.15,7.92891201]
[1763653148153,33.76327714,140.2,140.15,7.92891201]
[1763653148346,18.12096,140.22,140.17,7.05891201]
[1763653148668,1.74,140.21,140.17,7.72891201]
[1763653148959,1.74,140.21,140.16,16.8477397]
[1763653149147,2.45,140.21,140.16,17.5177397]
[1763653149345,1.74,140.21,140.16,17.5177397]
[1763653149660,0.71,140.2,140.16,9.78882769]
[1763653149959,7.8430504,140.2,140.16,17.5177397]
[1763653150164,14.90196241,140.2,140.15,7.25891201]
[1763653150378,32.73363145,140.2,140.15,7.92891201]
[1763653150674,0.71,140.19,140.15,0.2]
[1763653150857,1.74,140.18,140.15,9.98882769]
[1763653151067,1.74,140.18,140.15,0.2]
[1763653151264,1.74,140.18,140.15,0.87]
[1763653151447,1.74,140.18,140.16,0.67]
[1763653151648,1.74,140.18,140.15,9.98882769]
[1763653151870,8.87370804,140.18,140.15,17.7177397]
[1763653152858,0.71,140.17,140.15,0.2]
[1763653153083,7.05891201,140.16,140.15,0.2]
[1763653153586,7.76891201,140.16,140.13,0.2]
[1763653153749,9.50891201,140.15,140.13,0.2]
[1763653153950,7.13572142,140.14,140.13,0.2]
[1763653154149,7.84572142,140.14,140.13,0.2]
[1763653154344,8.8752817,140.15,140.13,0.2]
[1763653154550,9.5852817,140.15,140.13,0.2]
[1763653154864,16.64419371,140.15,140.13,0.2]
[1763653155063,2.45,140.15,140.13,0.2]
[1763653155264,8.8752723,140.15,140.13,0.2]
[1763653155566,7.1352723,140.15,140.13,0.2]
[1763653155760,8.87572142,140.14,140.13,0.2]
[1763653156767,7.13572142,140.14,140.13,0.2]
[1763653156968,8.87572142,140.14,140.13,0.2]
[1763653158303,9.58572142,140.14,140.13,0.2]
[1763653158467,16.64463343,140.14,140.13,0.2]
[1763653159973,9.58572142,140.14,140.13,0.2]
[1763653160293,16.64463343,140.14,140.13,0.2]
[1763653160500,18.12096,140.11,140.08,0.2]
[1763653160669,7.05891201,140.09,140.08,0.2]
[1763653161102,1.74,140.09,140.08,0.2]
[1763653161594,9.49891201,140.09,140.08,0.2]
[1763653162201,8.87826825,140.09,140.08,0.2]
[1763653162409,1.74,140.09,140.08,0.2]
[1763653163200,2.44,140.09,140.08,0.2]
[1763653163977,9.57826825,140.09,140.08,0.2]
[1763653164175,8.87826825,140.09,140.08,0.2]
[1763653164394,1.74,140.09,140.08,0.92]
[1763653164588,1.74,140.09,140.08,0.2]
[1763653164782,9.49891201,140.09,140.08,0.2]
[1763653165508,27.61987201,140.09,140.08,0.2]
[1763653165894,18.12096,140.09,140.08,0.2]
[1763653166100,8.87826825,140.09,140.08,0.2]
[1763653166286,15.93718026,140.09,140.08,0.2]
[1763653167212,14.19718026,140.09,140.08,0.2]
[1763653167411,16.63718026,140.09,140.08,0.2]
[1763653167990,34.75814026,140.09,140.08,0.2]
[1763653168201,52.6038109,140.09,140.06,0.2]
[1763653168404,7.75891201,140.08,140.06,0.2]
[1763653169518,1.74,140.07,140.06,0.86]
[1763653170321,8.87928749,140.07,140.06,0.86]
[1763653170813,8.87928749,140.07,140.06,0.2]
[1763653170988,1.74,140.07,140.06,0.86]
[1763653171604,1.74,140.07,140.06,7.91891201]
[1763653171803,1.74,140.07,140.06,17.7077397]
[1763653172525,8.87928749,140.07,140.06,0.86]
[1763653172696,8.87928749,140.07,140.06,0.2]
[1763653173417,42.54524593,140.07,139.98,0.2]
[1763653173593,42.54524593,140.07,139.99,0.66]
[1763653173594,7.05891201,140.03,139.99,0.66]
[1763653173914,0.71,140.06,139.99,0.66]
[1763653174117,1.74,140.05,140.0,9.78882769]
[1763653174325,7.14032322,140.05,140.0,16.8477397]
[1763653174502,7.14032322,140.05,140.01,0.66]
[1763653174503,1.74,140.04,140.01,0.66]
[1763653175018,7.14032322,140.05,140.01,0.66]
[1763653175216,7.14002873,140.06,140.01,7.71891201]
[1763653175393,1.74,140.05,140.01,7.71891201]
[1763653175592,1.74,140.05,140.02,0.66]
[1763653175991,0.71,140.04,140.0,17.5077397]
[1763653176194,7.14122673,140.04,140.01,0.66]
[1763653176426,7.13979722,140.06,140.01,7.71891201]
[1763653176594,1.74,140.05,140.01,7.71891201]
[1763653176794,1.74,140.05,140.02,0.66]
[1763653176989,1.74,140.04,140.02,0.66]
[1763653177406,7.13948182,140.07,140.02,3.6358447]
[1763653177693,1.74,140.06,140.02,0.66]
[1763653177903,1.74,140.06,140.03,0.66]
[1763653178391,8.88002703,140.06,140.03,3.6358447]
[1763653178597,8.88002703,140.06,140.03,0.66]
[1763653179006,26.7295201,140.06,140.02,2.9758447]
[1763653179208,26.7295201,140.06,140.02,3.6358447]
[1763653179418,8.88002703,140.06,140.02,2.9758447]
[1763653179625,8.88002703,140.06,140.03,0.66]
[1763653180119,7.14002703,140.06,140.03,3.6358447]
[1763653180417,1.74,140.05,140.03,3.6358447]
[1763653180623,1.74,140.05,140.04,0.66]
[1763653181311,18.12096,140.1,140.04,3.6358447]
[1763653181503,1.74,140.09,140.06,2.9758447]
[1763653181701,1.74,140.08,140.06,3.6358447]
[1763653181902,1.74,140.07,140.06,0.66]
[1763653182319,1.74,140.07,140.04,2.9758447]
[1763653182533,8.87928749,140.07,140.04,3.6358447]
[1763653182913,8.87928749,140.07,140.04,7.74236718]
[1763653183114,8.87928749,140.07,140.04,7.08236718]
[1763653183322,18.83096,140.12,140.05,7.74236718]
[1763653183533,18.83096,140.12,140.06,7.08236718]
[1763653183534,17.84494546,140.1,140.06,7.08236718]
[1763653183735,17.84494546,140.1,140.07,0.66]
[1763653184039,17.84494546,140.1,140.07,7.74236718]
[1763653184239,24.9827042,140.1,140.07,0.66]
[1763653184413,7.13775874,140.1,140.06,0.66]
[1763653184617,7.08236718,140.08,140.03,7.74236718]
[1763653184815,2.45,140.07,140.03,7.74236718]
[1763653185030,1.74,140.07,140.04,0.66]
[1763653185534,1.74,140.06,140.03,7.08236718]
[1763653186039,1.74,140.06,140.03,7.74236718]
[1763653186214,7.14030703,140.05,140.01,10.44882769]
[1763653186528,0.71,140.05,140.01,9.78882769]
[1763653186732,8.87988475,140.06,140.02,7.08236718]
[1763653186930,8.87988475,140.06,140.02,7.74236718]
[1763653187455,26.72937782,140.06,140.01,16.87119487]
[1763653187620,0.71,140.05,140.01,17.53119487]
[1763653187814,2.45,140.05,140.01,17.53119487]
[1763653188140,1.74,140.05,140.01,0.66]
[1763653188444,7.1408169,140.04,140.01,0.66]
[1763653188947,7.1408169,140.04,140.01,7.74236718]
[1763653190758,7.1408169,140.04,139.98,0.2]
[1763653190759,7.77236718,140.03,139.98,0.2]
[1763653190923,1.74,140.02,139.98,0.2]
[1763653191122,2.43,140.02,139.98,0.2]
[1763653191456,1.74,140.02,139.98,7.97236718]
[1763653191634,2.43,140.02,139.98,7.97236718]
[1763653191835,7.1408169,140.04,140.01,7.08236718]
[1763653192048,1.74,140.03,140.01,7.08236718]
[1763653192636,8.88148444,140.03,140.0,7.08236718]
[1763653193252,1.74,140.02,140.01,7.08236718]
[1763653193460,7.14030703,140.05,140.01,7.08236718]
[1763653193663,8.82236718,140.04,139.99,9.78882769]
[1763653193955,0.69,140.03,139.99,0.69]
[1763653194145,0.69,140.03,139.99,7.77236718]
[1763653194329,1.74,140.02,139.99,7.77236718]
[1763653195151,17.85256107,140.04,140.0,7.77236718]
[1763653195352,1.74,140.03,140.01,7.08236718]
[1763653195533,1.74,140.03,140.01,7.77236718]
[1763653196142,25.89332718,140.06,140.01,7.77236718]
[1763653196348,27.42107461,140.05,140.01,7.77236718]
[1763653196853,27.42107461,140.05,140.01,13.0262204]
[1763653197222,25.26093871,140.06,140.01,12.3362204]
[1763653197428,25.26093871,140.06,140.02,13.0262204]
[1763653197429,7.13997871,140.06,140.02,13.0262204]
[1763653197628,2.43,140.05,139.98,17.13245131]
[1763653197871,2.43,140.05,140.0,13.0262204]
[1763653198341,7.14132685,140.03,140.0,13.0262204]
[1763653198669,1.74,140.02,140.0,13.0262204]
[1763653199756,2.43,140.02,139.98,0.89]
[1763653199960,2.43,140.02,139.98,13.2262204]
[1763653200163,2.43,140.02,139.98,0.2]
[1763653200164,0.69,140.01,139.98,0.2]
[1763653200473,7.14285714,140.0,139.98,0.2]
[1763653200677,14.0762204,139.99,139.98,0.2]
[1763653200841,14.7662204,139.99,139.98,0.2]
[1763653201034,2.43,139.99,139.98,0.2]
[1763653201236,0.69,139.99,139.93,12.3362204]
[1763653201467,13.0262204,139.99,139.93,13.0262204]
[1763653201765,1.74,139.98,139.94,12.3362204]
[1763653201964,1.74,139.98,139.92,9.78882769]
[1763653201965,2.43,139.98,139.93,13.0262204]
[1763653202265,1.74,139.98,139.94,12.3362204]
[1763653202562,1.74,140.0,139.97,12.3362204]
[1763653202775,1.74,140.0,139.98,13.0262204]
[1763653202942,1.74,140.0,139.98,12.3362204]
[1763653203138,0.69,139.99,139.95,0.69]
[1763653203356,0.69,139.99,139.94,0.69]
[1763653203561,31.1471804,139.99,139.93,12.3362204]
[1763653203758,12.3362204,139.98,139.93,12.3362204]
[1763653203964,1.74,139.97,139.93,12.3362204]
[1763653204169,12.3362204,139.96,139.9,12.3362204]
[1763653204365,7.14591967,139.94,139.9,22.81504809]
[1763653204544,1.74,139.93,139.9,22.81504809]
[1763653204745,1.74,139.93,139.91,13.0262204]
[1763653204948,1.74,139.93,139.92,12.3362204]
[1763653205281,18.12096,139.99,139.92,12.3362204]
[1763653205282,12.3362204,139.98,139.92,13.0262204]
[1763653205584,1.74,139.97,139.93,12.3362204]
[1763653205756,2.43,139.97,139.93,0.69]
[1763653205955,0.69,139.96,139.91,12.3362204]
[1763653206162,1.74,139.95,139.92,12.3362204]
[1763653206362,1.74,139.95,139.92,13.0262204]
[1763653206559,9.57555627,139.95,139.9,22.81504809]
[1763653206760,0.69,139.94,139.88,0.69]
[1763653206967,0.69,139.94,139.89,22.12504809]
[1763653207153,8.88555627,139.95,139.9,12.3362204]
[1763653207348,9.57555627,139.95,139.9,12.3362204]
[1763653207547,18.12096,139.97,139.9,12.3362204]
[1763653207852,18.12096,139.97,139.92,12.3362204]
[1763653207853,1.74,139.96,139.92,12.3362204]
[1763653208067,12.3362204,139.98,139.91,0.69]
[1763653208068,0.69,139.98,139.91,0.69]
[1763653208271,1.74,139.97,139.95,12.3362204]
[1763653208470,1.74,139.97,139.92,9.78882769]
[1763653208694,1.74,139.97,139.94,12.3362204]
[1763653208982,0.69,139.96,139.92,13.0262204]
[1763653209365,0.69,139.96,139.92,0.69]
[1763653209557,0.69,139.96,139.91,12.3362204]
[1763653209751,0.69,139.96,139.92,12.3362204]
[1763653210454,8.88540907,139.95,139.92,13.0262204]
[1763653210666,1.74,139.95,139.92,13.0262204]
[1763653211557,12.3362204,139.93,139.87,0.69]
[1763653211770,0.69,139.94,139.89,12.3362204]
[1763653211771,1.74,139.92,139.89,12.3362204]
[1763653211969,1.74,139.92,139.91,12.3362204]
[1763653212250,1.74,139.92,139.91,13.0262204]
[1763653212495,1.74,139.92,139.91,0.69]
[1763653212696,1.74,139.92,139.91,13.0262204]
[1763653213274,7.14555737,139.95,139.91,13.0262204]
[1763653213275,1.74,139.94,139.91,13.0262204]
[1763653213489,7.14540907,139.95,139.92,0.69]
[1763653213670,7.14442652,139.97,139.93,12.3362204]
[1763653213873,1.74,139.94,139.92,12.3362204]
[1763653214075,1.74,139.94,139.92,13.0262204]
[1763653214267,1.74,139.94,139.93,0.69]
[1763653214475,1.74,139.94,139.92,13.0262204]
[1763653215080,1.74,139.94,139.92,20.17315315]
[1763653215393,1.74,139.94,139.93,0.69]
[1763653215994,1.74,139.94,139.93,13.0262204]
[1763653216381,7.1452503,139.96,139.93,13.0262204]
[1763653216694,7.14285714,140.0,139.95,12.3362204]
[1763653216898,7.14285714,140.0,139.96,12.3362204]
[1763653217202,1.74,139.99,139.95,12.3362204]
[1763653217492,1.74,139.98,139.96,13.0262204]
[1763653217697,1.74,139.99,139.97,13.0262204]
[1763653217885,1.74,139.99,139.97,0.69]
[1763653218080,1.74,139.99,139.95,0.69]
[1763653218275,1.74,139.99,139.96,0.69]
[1763653218476,1.74,139.99,139.95,12.3362204]
[1763653218477,0.69,139.98,139.95,12.3362204]
[1763653218677,1.74,139.97,139.95,13.0262204]
[1763653219791,1.74,139.97,139.94,12.3362204]
[1763653219987,1.74,139.97,139.94,13.0262204]
[1763653220904,8.88472039,139.97,139.94,13.0262204]
[1763653221116,1.74,139.97,139.95,0.66]
[1763653221293,1.74,139.97,139.95,12.9962204]
[1763653222478,1.74,139.97,139.96,0.66]
[1763653222673,1.74,139.97,139.95,12.3362204]
[1763653222674,1.74,139.97,139.95,0.66]
[1763653222903,1.74,139.97,139.95,12.9962204]
[1763653223105,8.88441267,139.97,139.95,12.9962204]
[1763653223405,1.74,139.97,139.95,12.9962204]
[1763653224195,1.74,139.97,139.96,0.66]
[1763653224609,1.74,139.97,139.96,12.9962204]
[1763653225085,7.14408264,139.98,139.96,12.9962204]
[1763653225402,1.74,139.98,139.96,0.66]
[1763653225613,1.74,139.98,139.96,12.9962204]
[1763653225784,8.88402886,139.98,139.96,12.9962204]
[1763653226114,1.74,139.98,139.96,12.9962204]
[1763653226409,1.74,139.98,139.97,12.9962204]
[1763653226606,1.74,139.98,139.96,12.9962204]
[1763653226810,8.88434331,139.98,139.96,5.31293146]
[1763653227587,0.67,139.97,139.95,4.65293146]
[1763653227906,26.74403755,139.98,139.94,4.65293146]
[1763653228112,1.74,139.97,139.95,4.65293146]
[1763653228288,7.81341012,139.99,139.94,4.65293146]
[1763653228498,1.74,139.98,139.94,4.65293146]
[1763653228710,7.14438808,139.97,139.94,5.31293146]
[1763653228887,0.67,139.96,139.92,4.65293146]
[1763653229084,6.39293146,139.95,139.9,9.78882769]
[1763653229320,4.65293146,139.94,139.89,0.66]
[1763653229497,5.31293146,139.94,139.89,5.31293146]
[1763653229693,5.31293146,139.93,139.89,0.66]
[1763653230023,1.74,139.92,139.89,5.31293146]
[1763653230225,2.4,139.92,139.87,0.66]
[1763653230521,2.4,139.92,139.88,5.31293146]
[1763653230686,7.14745193,139.91,139.88,5.31293146]
[1763653231099,0.66,139.9,139.86,0.2]
[1763653231320,1.74,139.89,139.86,0.2]
[1763653231691,0.66,139.89,139.86,0.2]
[1763653231886,1.74,139.89,139.87,4.65293146]
[1763653232089,1.74,139.89,139.88,4.65293146]
[1763653232488,1.74,139.93,139.89,9.78882769]
[1763653232718,2.4,139.93,139.89,0.66]
[1763653232893,9.54655375,139.93,139.89,0.66]
[1763653233206,0.66,139.92,139.88,4.65293146]
[1763653233516,0.66,139.92,139.9,4.65293146]
[1763653233517,1.74,139.92,139.9,4.65293146]
[1763653233701,1.74,139.92,139.89,5.31293146]
[1763653233902,2.4,139.92,139.87,10.44882769]
[1763653234110,2.4,139.92,139.88,5.31293146]
[1763653234716,7.14745193,139.91,139.88,4.65293146]
[1763653235016,7.14745193,139.91,139.87,9.78882769]
[1763653235017,25.67608176,139.91,139.87,4.65293146]
[1763653235228,7.14745193,139.91,139.88,0.66]
[1763653235723,0.66,139.9,139.86,0.2]
[1763653236022,29.66901322,139.91,139.86,5.51293146]
[1763653236023,1.74,139.89,139.86,5.51293146]
[1763653236715,1.74,139.89,139.87,5.31293146]
[1763653236898,1.74,139.89,139.87,0.66]
[1763653237222,7.14810645,139.9,139.87,4.65293146]
[1763653237391,8.88810645,139.9,139.87,5.31293146]
[1763653237718,1.74,139.9,139.88,5.31293146]
[1763653237917,1.74,139.9,139.88,0.66]
[1763653238221,8.88820136,139.9,139.87,4.65293146]
[1763653238747,8.88820136,139.9,139.87,5.31293146]
[1763653238894,8.88820136,139.9,139.87,4.65293146]
[1763653239093,9.54820136,139.9,139.87,4.65293146]
[1763653239422,26.75810843,139.9,139.87,4.65293146]
[1763653239585,8.88820136,139.9,139.87,4.65293146]
[1763653239791,8.88820136,139.9,139.87,5.31293146]
[1763653240205,8.88820136,139.9,139.87,0.66]
[1763653240400,8.88820136,139.9,139.86,4.85293146]
[1763653240703,26.75810843,139.9,139.87,0.66]
[1763653240902,26.75810843,139.9,139.86,4.85293146]
[1763653241097,5.31293146,139.89,139.86,0.2]
[1763653241316,4.65293146,139.88,139.86,0.2]
[1763653241614,1.74,139.87,139.86,0.2]
[1763653241812,2.4,139.87,139.86,0.2]
[1763653241987,7.05293146,139.87,139.86,0.2]
[1763653243106,14.20242742,139.87,139.86,0.2]
[1763653243802,18.12096,139.84,139.81,0.2]
[1763653244027,1.74,139.83,139.81,0.2]
[1763653245044,7.15256419,139.81,139.8,1e-08]
[1763653245256,11.80549565,139.81,139.8,1e-08]
[1763653245453,18.12096,139.79,139.78,1e-08]
[1763653245746,19.86096,139.79,139.71,0.66]
[1763653245915,19.86096,139.79,139.7,5.31293146]
[1763653245916,4.65293146,139.76,139.7,5.31293146]
[1763653246117,1.74,139.75,139.71,4.65293146]
[1763653246317,1.74,139.75,139.71,0.66]
[1763653246549,1.74,139.75,139.71,5.31293146]
[1763653246747,2.4,139.75,139.71,0.66]
[1763653247041,38.09706929,139.74,139.69,13.05055434]
[1763653247243,37.43706929,139.74,139.69,0.66]
[1763653247425,25.70651495,139.74,139.69,0.66]
[1763653247749,0.66,139.73,139.69,0.66]
[1763653247921,1.74,139.72,139.69,13.05055434]
[1763653248241,20.20524788,139.77,139.71,12.39055434]
[1763653248414,1.74,139.75,139.72,12.39055434]
[1763653248614,1.74,139.75,139.71,0.66]
[1763653248850,19.54465011,139.79,139.73,22.17938203]
[1763653249056,7.15293487,139.81,139.76,9.78882769]
[1763653249214,1.74,139.82,139.79,22.17938203]
[1763653249423,1.74,139.84,139.8,0.66]
[1763653249623,12.39055434,139.82,139.77,0.66]
[1763653249811,14.13055434,139.81,139.77,0.66]
[1763653250024,13.05055434,139.82,139.77,13.05055434]
[1763653250366,1.74,139.81,139.77,13.05055434]
[1763653250662,1.74,139.81,139.78,0.7]
[1763653251035,1.74,139.81,139.74,27.67919551]
[1763653251235,1.74,139.81,139.78,13.09055434]
[1763653251562,1.74,139.84,139.8,12.39055434]
[1763653251730,0.69,139.87,139.82,12.39055434]
[1763653251925,35.99096,139.92,139.79,10.48882769]
[1763653251926,1.74,139.86,139.79,10.48882769]
[1763653252158,1.74,139.85,139.81,22.17938203]
[1763653252661,2.43,139.85,139.81,22.87938203]
[1763653253154,8.89051841,139.85,139.81,22.87938203]
[1763653253358,9.58051841,139.85,139.81,22.87938203]
[1763653253659,8.89051841,139.85,139.81,22.87938203]
[1763653253863,13.08055434,139.87,139.82,13.09055434]
[1763653254038,1.74,139.87,139.83,12.39055434]
[1763653254240,1.74,139.87,139.83,13.09055434]
[1763653254439,26.76329086,139.87,139.84,0.7]
[1763653254765,0.69,139.86,139.82,12.39055434]
[1763653255060,25.02681444,139.85,139.81,9.78882769]
[1763653255257,1.74,139.84,139.78,0.7]
[1763653255442,1.74,139.84,139.8,12.39055434]
[1763653255641,1.74,139.84,139.81,12.39055434]
[1763653256052,1.74,139.84,139.82,0.7]
[1763653256249,1.74,139.84,139.82,13.09055434]
[1763653256450,1.74,139.84,139.82,0.7]
[1763653256655,1.74,139.84,139.81,12.39055434]
[1763653256855,1.74,139.84,139.82,0.7]
[1763653257357,7.15154115,139.83,139.82,0.7]
[1763653259256,7.15154115,139.83,139.8,7.10531894]
[1763653259459,8.8912101,139.84,139.8,7.80531894]
[1763653259654,0.69,139.83,139.77,20.56096]
[1763653259859,26.76878447,139.84,139.79,7.10531894]
[1763653260249,9.5812101,139.84,139.8,7.80531894]
[1763653260743,26.76878447,139.84,139.81,0.7]
[1763653260942,7.1512101,139.84,139.81,7.80531894]
[1763653261176,8.8912101,139.84,139.82,7.10531894]
[1763653261478,8.89108082,139.84,139.82,0.7]
[1763653261654,0.69,139.83,139.8,7.10531894]
[1763653261850,26.76865519,139.84,139.8,7.10531894]
[1763653262050,27.45865519,139.84,139.8,7.80531894]
[1763653262248,26.76865519,139.84,139.78,10.48882769]
[1763653262573,27.45865519,139.84,139.8,7.10531894]
[1763653262756,34.56397413,139.84,139.79,7.80531894]
[1763653262960,27.45865519,139.84,139.8,7.10531894]
[1763653263158,26.76865519,139.84,139.8,7.80531894]
[1763653263367,8.89115928,139.84,139.78,9.78882769]
[1763653263568,8.89115928,139.84,139.8,7.80531894]
[1763653263766,26.76873365,139.84,139.8,7.80531894]
[1763653264070,26.76873365,139.84,139.81,0.7]
[1763653264478,26.76873365,139.84,139.79,0.7]
[1763653265049,8.89115928,139.84,139.81,7.10531894]
[1763653265259,26.76873365,139.84,139.81,7.10531894]
[1763653265470,26.76873365,139.84,139.81,0.7]
[1763653265755,26.76873365,139.84,139.81,7.80531894]
[1763653265970,26.76873365,139.84,139.81,0.7]
[1763653266150,26.76873365,139.84,139.81,7.80531894]
[1763653266348,26.76873365,139.84,139.81,7.10531894]
[1763653266662,0.69,139.83,139.8,9.78882769]
[1763653267176,0.69,139.83,139.78,0.7]
[1763653267177,3.67500755,139.83,139.78,0.7]
[1763653267385,3.67500755,139.83,139.78,2.98500755]
[1763653267386,25.03218422,139.82,139.78,2.98500755]
[1763653267554,1.74,139.81,139.79,2.98500755]
[1763653267762,1.74,139.81,139.79,3.68500755]
[1763653267973,7.15176135,139.83,139.8,3.68500755]
[1763653268176,7.15112714,139.84,139.82,2.98500755]
[1763653268481,1.74,139.84,139.82,2.98500755]
[1763653268802,2.98500755,139.89,139.83,3.68500755]
[1763653268958,1.74,139.88,139.84,9.78882769]
[1763653269155,1.74,139.88,139.84,10.48882769]
[1763653269373,1.74,139.88,139.85,3.68500755]
[1763653269575,1.74,139.88,139.86,2.98500755]
[1763653269968,8.88918994,139.88,139.85,0.7]
[1763653270168,8.88918994,139.88,139.85,3.68500755]
[1763653270875,1.74,139.88,139.86,3.68500755]
[1763653271059,8.88906585,139.88,139.86,3.68500755]
[1763653271463,0.69,139.92,139.87,3.68500755]
[1763653271664,35.7263964,139.96,139.91,2.98500755]
[1763653271665,0.69,139.95,139.91,2.98500755]
[1763653271868,1.74,139.94,139.91,2.98500755]
[1763653272094,1.74,139.94,139.92,2.98500755]
[1763653272460,1.74,139.94,139.92,0.7]
[1763653272672,0.69,139.97,139.92,2.98500755]
[1763653272874,2.43,139.96,139.92,7.09396494]
[1763653273395,7.14540907,139.95,139.91,16.88279263]
[1763653273591,7.83540907,139.95,139.87,18.12096]
[1763653273902,0.69,139.94,139.9,7.09396494]
[1763653274104,1.74,139.93,139.89,9.78882769]
[1763653274272,1.74,139.93,139.88,7.09396494]
[1763653274472,0.69,139.92,139.88,7.79396494]
[1763653274869,0.69,139.92,139.88,0.7]
[1763653275111,0.69,139.92,139.86,9.78882769]
[1763653275292,0.69,139.92,139.87,7.79396494]
[1763653275598,7.14745193,139.91,139.88,7.09396494]
[1763653276173,0.69,139.92,139.88,7.79396494]
[1763653276370,0.69,139.92,139.87,7.09396494]
[1763653276371,32.79839103,139.92,139.87,7.09396494]
[1763653276805,32.79839103,139.92,139.87,7.79396494]
[1763653277326,7.09396494,139.9,139.83,0.7]
[1763653277473,25.02144695,139.88,139.84,16.88279263]
[1763653277677,7.14898484,139.88,139.85,7.09396494]
[1763653277988,7.14898484,139.88,139.85,7.79396494]
[1763653278166,7.14898484,139.88,139.85,7.09396494]
[1763653278370,7.14898484,139.88,139.84,16.88279263]
[1763653278603,7.14898484,139.88,139.85,7.79396494]
[1763653278805,8.88866869,139.89,139.86,7.09396494]
[1763653278970,8.88866869,139.89,139.86,7.79396494]
[1763653279469,1.74,139.9,139.86,0.7]
[1763653279668,2.43,139.9,139.83,1.74]
[1763653279888,2.43,139.9,139.86,7.09396494]
[1763653280414,2.43,139.9,139.86,7.80396494]
[1763653281116,0.67,139.89,139.84,7.09396494]
[1763653281412,0.67,139.89,139.83,7.09396494]
[1763653281413,7.14949596,139.87,139.83,7.09396494]
[1763653281616,1.74,139.87,139.84,7.09396494]
[1763653281821,1.74,139.87,139.84,0.71]
[1763653281985,1.74,139.87,139.84,7.80396494]
[1763653282796,2.41,139.87,139.83,16.88279263]
[1763653283092,2.41,139.87,139.8,16.88279263]
[1763653283093,7.09396494,139.85,139.8,16.88279263]
[1763653283291,1.74,139.84,139.81,7.80396494]
[1763653283492,1.74,139.84,139.78,7.15394592]